Cogmind - Beta 13 @@@ ROGUE MODE // 2024.04.28 @ 11:19:21 Player: ash Result: Destroyed by as-29609 with Assembled Blade Performance ------------- Evolutions (0) 0 Regions Visited (2) 400 Robots Destroyed (12) 60 Value Destroyed (291) 291 Prototype IDs (0) 0 Alien Tech Used (0) 0 Bonus (0) 0 TOTAL SCORE: 751 Bonus ------- None Cogmind --------- Core Integrity 0/250 Matter 234/300 Energy 80/100 System Corruption 13% Temperature Hot (251) Movement Walking (120) Location -10/Mines Parts ------- > --- POWER (1) -------- (None) > --- PROPULSION (2) --- Aluminum Leg Aluminum Leg > --- UTILITY (2) ------ Improved Heat Sink Small Storage Unit > --- WEAPON (2) ------- Medium Laser > --- INVENTORY (8) ---- Aluminum Leg Wheel Light Armor Plating Peak State ------------ > --- POWER ------------ Light Ion Engine > --- PROPULSION ------- Aluminum Leg Aluminum Leg > --- UTILITY ---------- Improved Heat Sink Small Storage Unit > --- WEAPON ----------- EM Pulse Gun Light Assault Rifle > --- INVENTORY -------- Light Nuclear Core Light Treads Light Treads Aluminum Leg Aluminum Leg Wheel Compact Wheel Assault Rifle [Rating: 10] Favorites ----------- Power Light Ion Engine Engine Light Ion Engine Power Core Light Nuclear Core Propulsion Aluminum Leg Leg Aluminum Leg Utility Small Storage Unit Device Improved Heat Sink Storage Small Storage Unit Weapon Light Assault Rifle Energy Gun EM Pulse Gun Ballistic Gun Light Assault Rifle Launcher Grenade Launcher Build | -11 -10 -10 ------- Run | Yrd Mat Min Slots Evolved . | . . . Power . | . . . Propulsion . | . . . Utility . | . . . Weapon . | . . . Parts Attached 10 | . 3 7 Power 1 | . . 1 Engine . | . . . Core 1 | . . 1 Reactor . | . . . Propulsion 2 | . . 2 Treads . | . . . Leg 2 | . . 2 Wheel . | . . . Hover . | . . . Flight . | . . . Utility 1 | . 1 . Device 1 | . 1 . Storage . | . . . Processor . | . . . Hackware . | . . . Protection . | . . . Artifact . | . . . Weapon 6 | . 2 4 Energy Gun 1 | . . 1 Energy Cannon . | . . . Ballistic Gun 3 | . 2 1 Ballistic Cannon . | . . . Launcher 2 | . . 2 Special Weapon . | . . . Impact Weapon . | . . . Slashing Weapon . | . . . Piercing Weapon . | . . . Special Melee Weapon . | . . . Unidentified Prototypes . | . . . Parts Lost 8 | . 1 7 Power 2 | . . 2 Propulsion 2 | . . 2 Utility . | . . . Weapon 4 | . 1 3 Highest Loss Streak 7 | . 1 7 To Critical Strikes . | . . . Average Slot Usage (%) 96 | . 97 85 Engine 13 | . 14 4 Leg 28 | . 28 28 Device 12 | . 12 14 Storage 14 | . 14 14 Energy Gun 6 | . 7 . Ballistic Gun 19 | . 20 14 Naked Turns . | . . . Heaviest Build 14 | 11 12 14 Greatest Support 20 | 20 20 20 Greatest Overweight (x) . | . . . Average Overweight (x) . | . . . Largest Inventory Capacity 8 | . 8 8 Average Capacity 8 | . 8 8 Most Carried 8 | . 8 8 Average Carried 7 | . 7 6 Final Capacity 8 | 8 8 8 Final Carried 8 | 6 8 3 Class Distribution -------------------- 100% | Mutant Dominant Class ---------------- Mutant | -10/Materials Mutant | -10/Mines Resources | -11 -10 -10 ----------- Run | Yrd Mat Min Matter Collected 302 | 200 97 5 Remotely . | . . . Salvage Created 378 | . 293 85 Parts 26 | . 22 4 Haulers Intercepted . | . . . Recyclers Shooed 1 | . 1 . Parts Field Recycled . | . . . Retrieved Matter . | . . . Parts Self-Destructed . | . . . Prevented . | . . . Kills | -11 -10 -10 ------- Run | Yrd Mat Min Combat Hostiles Destroyed 17 | . 5 12 Guns 7 | . 5 2 AOE 10 | . . 10 Classes Destroyed 6 | . 4 2 Worker 1 | . 1 . Builder 1 | . 1 . Watcher 1 | . 1 . Swarmer 4 | . . 4 Grunt 5 | . 5 . Assembled 8 | . . 8 Best Kill Streak 12 | . 3 12 Combat Bots Only 12 | . 2 12 Max Kills in Single Turn 8 | . 1 8 Gunslinging . | . . . Exploded 7 | . . 7 Melee . | . . . Uniques/NPCs Destroyed . | . . . Combat | -11 -10 -10 -------- Run | Yrd Mat Min Hostile Shots Fired 62 | . 21 41 Missed 11 | . 3 8 Damage Taken 1221 | . 296 925 Core 275 | . 62 213 Absorbed by Shields . | . . . Core Remaining (%) 100 | 100 . . Volleys Fired 33 | . 26 7 Largest 2 | . 2 2 Hottest 60 | . 60 50 Shots Fired 63 | . 52 11 Gun 60 | . 52 8 Cannon . | . . . Launcher 3 | . . 3 Special . | . . . Kinetic 45 | . 40 5 Thermal 3 | . . 3 Explosive 3 | . . 3 Electromagnetic 12 | . 12 . Robot Hit Streak 7 | . 7 4 Robot Miss Streak 4 | . 4 1 Penetration Max . | . . . Secondary Targets . | . . . Shots Hit Robots 38 | . 33 5 Core Hits 38 | . 19 19 Critical Kills . | . . . Critical Parts Destroyed . | . . . Critical Strikes . | . . . Melee Attacks . | . . . Impact . | . . . Slashing . | . . . Piercing . | . . . Sneak Attacks . | . . . Combat Hostiles . | . . . Follow-up Attacks . | . . . Damage Inflicted 961 | . 455 506 Guns 419 | . 339 80 Cannons . | . . . Explosions 538 | . 115 423 Melee . | . . . Ramming 4 | . 1 3 Kinetic 259 | . 217 42 Thermal 153 | . 115 38 Explosive 423 | . . 423 Electromagnetic 122 | . 122 . Impact . | . . . Slashing . | . . . Piercing . | . . . Highest Corruption 13 | . 1 13 Average Corruption 2 | . 1 5 Corruption Purged . | . . . Corruption Blocked . | . . . Effects 2 | . 1 1 Heat Flow Errors 1 | . . 1 Data Loss (minor) 1 | . 1 . Overload Shots . | . . . Overflow Damage 5 | . 5 . Projectiles . | . . . Explosions 5 | . 5 . Melee . | . . . Knockbacks . | . . . Impact . | . . . Kinetic . | . . . Secondary . | . . . Self-Inflicted Damage 73 | . 43 30 Shots 2 | . 1 1 Rammed . | . . . Targets Rammed 3 | . 1 2 Kicked 3 | . 1 2 Crushed . | . . . Highest Temperature 303 | . 55 303 Average Temperature 71 | . 17 214 Received Heat Transfer 284 | . 144 140 Siege Activations . | . . . Robots Corrupted . | . . . Combat Hostiles . | . . . Parts Fried . | . . . Impact Corruptions . | . . . Robots Melted . | . . . Combat Hostiles . | . . . Parts Melted . | . . . Heat Transferred 211 | . 100 111 Parts Sabotaged . | . . . Parts Stolen . | . . . Parts Stripped . | . . . Power Chain Reactions 1 | . 1 . Alert | -11 -10 -10 ------- Run | Yrd Mat Min Peak Influence 209 | . 190 209 Initial 73 | . . 73 Average 106 | . 99 162 Maximum Alert Level 1 | . . 1 Low Security (%) 97 | . 100 79 Level 1 2 | . . 20 Level 2 . | . . . Level 3 . | . . . Level 4 . | . . . Level 5 . | . . . High Security . | . . . Max Security . | . . . Squads Dispatched . | . . . Investigation . | . . . Extermination . | . . . Reinforcement . | . . . Assault . | . . . Garrison . | . . . Intercept . | . . . Searches Triggered . | . . . Construction Impeded . | . . . Haulers Reinforced . | . . . Active Scanning Responses . | . . . Cargo Convoy Interrupts . | . . . Stealth | -11 -10 -10 --------- Run | Yrd Mat Min Distress Signals . | . . . Communications Jammed . | . . . Distress Signals . | . . . Times Spotted 29 | . 10 19 Peak Tracking Total 17 | . 3 17 Tactical Retreats 2 | . 1 1 Traps | -11 -10 -10 ------- Run | Yrd Mat Min Traps Triggered 1 | . 1 . Indirectly . | . . . Trap Hack Attempts . | . . . Triggered . | . . . Disarmed . | . . . Reprogrammed . | . . . Reused . | . . . Traps Extracted . | . . . Installed . | . . . Triggered . | . . . Machines | -11 -10 -10 ---------- Run | Yrd Mat Min Machines Disabled 2 | . . 2 Max in Single Turn 1 | . . 1 Machines Repaired . | . . . Machines Dismantled . | . . . Machines Sabotaged . | . . . Overloaded Fab Kills . | . . . Hacking | -11 -10 -10 --------- Run | Yrd Mat Min Machines Accessed 4 | . 4 . Terminals 3 | . 3 . Fabricators . | . . . Repair Stations 1 | . 1 . Recycling Units . | . . . Scanalyzers . | . . . Garrison Access . | . . . Total Hacks 17 | . 17 . Successful 7 | . 7 . Failed 10 | . 10 . Catastrophic . | . . . Database Lockouts . | . . . Manual 12 | . 12 . Terminals 15 | . 15 . Fabricators . | . . . Repair Stations 2 | . 2 . Recycling Units . | . . . Scanalyzers . | . . . Garrison Access . | . . . Terminal Hacks 3 | . 3 . Robot Analysis 1 | . 1 . Locate Traps 1 | . 1 . Hauler Manifests 1 | . 1 . Fabricator Hacks . | . . . Repair Station Hacks 1 | . 1 . Refit 1 | . 1 . Recycling Unit Hacks . | . . . Scanalyzer . | . . . Garrison Access Hacks . | . . . Unauthorized Hacks 3 | . 3 . Terminals 3 | . 3 . Botnet 3 | . 3 . Fabricators . | . . . Repair Stations . | . . . Recycling Units . | . . . Scanalyzers . | . . . Garrison Access . | . . . Data Cores Recovered . | . . . Used . | . . . Hacking Detections 4 | . 4 . Full Trace Events . | . . . Feedback Events . | . . . Feedback Blocked . | . . . Robot Schematics Acquired . | . . . Robots Built . | . . . Authchips . | . . . Time . | . . . Total Robot Build Rating . | . . . Part Schematics Acquired . | . . . Parts Built . | . . . Authchips . | . . . Time . | . . . Total Part Build Rating . | . . . Parts Repaired . | . . . Time . | . . . Parts Recycled . | . . . Recycled Matter . | . . . Retrieved Matter . | . . . Retrieved Components . | . . . Parts Scanalyzed . | . . . Part Schematics Acquired . | . . . Parts Damaged . | . . . Bothacking | -11 -10 -10 ------------ Run | Yrd Mat Min Used RIF Installer . | . . . Robots Hacked . | . . . Non-combat . | . . . Combat . | . . . Robot Hacks Applied . | . . . Relay Couplers Released . | . . . Fabnet Peak Effective % . | . . . Robots Rewired . | . . . Allies Hacked . | . . . Hacks Repelled . | . . . Allies | -11 -10 -10 -------- Run | Yrd Mat Min Total Allies . | . . . Largest Group . | . . . Highest-Rated Group . | . . . Highest-Rated Ally . | . . . Total Orders . | . . . Ally Attacks . | . . . Total Damage . | . . . Kills . | . . . Allies Corrupted . | . . . Allies Melted . | . . . Intel | -11 -10 -10 ------- Run | Yrd Mat Min Robot Analysis Total 1 | . 1 . Derelict Logs Recovered . | . . . Drone Launches . | . . . Drone Recoveries . | . . . Exploration | -11 -10 -10 ------------- Run | Yrd Mat Min Turns Passed 348 | . 309 39 Spaces Moved 170 | 1 160 9 Core . | . . . Treads . | . . . Legs 170 | 1 160 9 Wheels . | . . . Hover . | . . . Flight . | . . . Fastest Speed 120 | 120 120 120 Average Speed 120 | 120 120 120 Slowest Speed 120 | 120 120 120 Overloaded Moves . | . . . Propulsion Burnouts . | . . . Robots Hopped . | . . . Cave-ins Triggered 2 | . . 2 Exploration Rate (%) 16 | 2 39 9 Regions Visited 2 Branch Regions 1 Pre-discovered Areas . | . . . Known Exits Taken . | . . . Unknown Exits Taken 2 | 1 1 . Scrap Searched . | . . . Spaces Dug . | . . . Terrain Destroyed 31 | . 6 25 Melee . | . . . Projectile . | . . . AOE 31 | . 6 25 Terrain Rammed . | . . . Walls Destroyed . | . . . Machines Disabled . | . . . Actions | -11 -10 -10 --------- Run | Yrd Mat Min Total 258 | . 233 25 Wait 29 | . 29 . Move 168 | . 159 9 Hop . | . . . Pick Up 8 | . 8 . Fast Attach 2 | . 2 . Attach 6 | . 1 5 Detach . | . . . Swap 2 | . . 2 Drop 7 | . 7 . Fire 33 | . 26 7 Melee . | . . . Ram . | . . . Kick 3 | . 1 2 Crush . | . . . Escape Stasis . | . . . Rewire . | . . . Trap . | . . . Miscellaneous . | . . . Route ------- -11/Scrapyard -10/Materials -10/Mines History --------- Turn | Location | Event 1 | -11/Scrapyard | Discovered new exit (range 0) 1 | -11/Scrapyard | Entered Materials 157 | -10/Materials | Discovered new exit (range 13) 308 | -10/Materials | Build established: Mutant 310 | -10/Materials | Entered Mines 311 | -10/Mines | Assembled infested the area 316 | -10/Mines | Assisted by a Guerilla fighting off Assembled 336 | -10/Mines | Crushed by falling debris 336 | -10/Mines | Core integrity fell below 50% 336 | -10/Mines | System corruption reached 10% 340 | -10/Mines | Met a Derelict bent on vengeance 344 | -10/Mines | Core integrity fell below 20% 349 | -10/Mines | Crushed by falling debris 349 | -10/Mines | Destroyed by as-29609 with Assembled Blade Last Messages --------------- 00334_ as-02998 destroyed. 00334_ as-45524 destroyed. 00334_ as-04567 destroyed. 00334_ as-71900 destroyed. 00334_ as-27567 destroyed. 00334_ as-58490 destroyed. 00336_ The unstable cave ceiling collapses. 00336_ Crushed by falling debris. 00336_ Grenade Launcher destroyed. 00336_ System corrupted by crushing effect (+4). 00336_ Aluminum Leg destroyed. 00336_ System corrupted by crushing effect (+3). 00336_ Assault Rifle destroyed. 00336_ System corrupted by crushing effect (+4). 00343_ System corrupted: Heat flow error (+258). 00346_ Lgt. Nuclear Core destroyed. 00347_ Kicked as-34637. 00348_ Kicked as-34637 out of the way. 00349_ The unstable cave ceiling collapses. 00349_ Crushed by falling debris. Map ----- +----------------------------------------------------+ | | | | | | | | | | | | | | | | | | | | | | | | | | | | | ?????????????????????????????????????????????? | | ?????????????????????????????????????????????? | | ?????????????????????????????????????????????? | | ???????????????########??????????????????????? | | ???????????????# #??????????????????????? | | ???????????????# "" ##?????????????????????? | | ???????????????# " #?????????????????????? | | ???????????????# % #?????????????????????? | | ???????????????# ?????????????????????? | | ???????????????# %%[% ##????????????????????? | | ???????????????## aaa###????????????????????? | | ????????????????## a@a# #?????????????????? | | ?????????????????# a####?? #?????????????????? | | ???????????####### #????????????????????????? | | ???????????# ## ###??????????????????????? | | ??????????## * #??????????????????????? | | ??????????# #??????????????????????? | | ??????????# " % #??????????????????????? | | ??????????# % #??????????????????????? | | ??????????## % #??????????????????????? | | ???????????#[" """ #??????????????????????? | | ???????????#%""" """ #??????????????????????? | | ???????????#=""" """ #??????????????????????? | | ???????????# #??????????????????????? | | ????????????# ########??????????????????????? | | ????????????# ??????????????????????????????? | | ????????????# ???????????????????????????????? | | ????????????# ???????????????????????????????? | | ?????????????????????????????????????????????? | | ?????????????????????????????????????????????? | | ?????????????????????????????????????????????? | | ?????????????????????????????????????????????? | | ?????????????????????????????????????????????? | | ?????????????????????????????????????????????? | | ?????????????????????????????????????????????? | | ?????????????????????????????????????????????? | +----------------------------------------------------+ Best States ------------- Heat Dissipation 39 Energy Generation 14 Energy Capacity 160 Matter Stores 300 Matter Capacity 300 Sight Range 16 Terrain Scan Density 10 Evasion (%) 55 Item Schematics ----------------- None Robot Schematics ------------------ None Fabricated ------------ Nothing Alien Tech Used ----------------- None Achievements -------------- None Challenges ------------ None Game ------ Seed GuidanceExoskeletonRigger Manual? 0 Play Time 00:14:05 Cumulative 57.3 hours Start 2024.04.28 @ 11:06:56 End 2024.04.28 @ 11:19:21 Sessions 1 Manual Loads 0 Difficulty Rogue Special Mode None Game No. 51 Rogue 6 Adventurer 45 Explorer 0 Win Type - Total 2 Types 2/0/0/0/0/0/0/0/0 Lore% 52 Gallery% 50 Achievement% 44 Wizard Run 0 Options --------- Layout 0 ASCII 1 Keyboard 1 Movement Numpad Keybinds 0 Fullscreen 1 Font 24/Smallcaps Map View 76x50 Zoom Use 0% Tactical HUD 1 Map Filters NONE Filters NONE Steam 1 RUN: 114a606a-f2db-43c7-8b4f-d330c5bc2ac7